Workbook

Sheet Startseite
B1: WERKNORM für ALU-Gehäuse
B6: ALU-ECOPAC | C6: Bitte hier klicken
B20: ALU-COMPACT | C20: Bitte hier klicken

Sheet ALU-ECOPAC
A1: Zurück zur Startseite
A3: Werknorm ALU-ECOPAC
A6: Schritt 1: | B6: Eingabe Profil-Höhe
B8: Profilhöhe
B9: Aussen [mm]
B11: H30 | C11: hier klicken
B13: H40 | C13: hier klicken
B15: H50 | C15: hier klicken
B17: H60 | C17: hier klicken
B19: H70 | C19: hier klicken
B21: H80 | C21: hier klicken
B23: H100 | C23: hier klicken
A59: Zurück zur Startseite

Sheet ALU-COMPACT
A1: Zurück zur Startseite
A3: Werknorm ALU-COMPACT
A6: Schritt 1: | B6: Eingabe Profil-Höhe
B8: Profilhöhe
B9: Aussen [mm]
B11: H30 | C11: hier klicken
B13: H40 | C13: hier klicken
B15: H50 | C15: hier klicken
B17: H60 | C17: hier klicken
B19: H70 | C19: hier klicken
B21: H80 | C21: hier klicken
B23: H100 | C23: hier klicken
A59: Zurück zur Startseite

Sheet H30 ECO
A1: Zurück zu ALU-ECOPAC
A3: Werknorm ALU-ECOPAC H30
A6: EINGABE
B9: Eingabe Leiterplatten-Maße
B11: Länge LLP | C11: 0 | D11: [mm]
B13: Breite BLP | C13: 0 | D13: [mm]
A16: Maße / Teileliste
A18: Kurzbeschreibung | C18: Abmessungen [mm] | F18: Anzahl [Stück]
A19: Alu-Längsprofil Länge L = | C19: =C11+0.2 -> 0.2 | F19: 2
A20: Boden- / Deckplatte s = 1,5 mm [LxB] | C20: =C11 -> 0.0 | D20: X | E20: =C13-4+15.6-0.2 -> 11.4 | F20: 2
A21: Boden- / Deckplatte s = 2,0 mm [LxB] | C21: =C11 -> 0.0 | D21: X | E21: =C13-4+8.6-0.2 -> 4.4 | F21: 2
A22: Boden- / Deckplatte s = 2,5 mm [LxB] | C22: nicht möglich | F22: ---
A23: Boden- / Deckplatte s = 3,0 mm [LxB] | C23: nicht möglich | F23: ---
A24: Stirnplatte mit Maß B4 | C24: =C13+10.2 -> 10.2 | F24: 2
A26: Bitte beachten:
A27: 1. Die Breite der Boden- / Deckplatte ändert sich mit Ihrer Dicke s (siehe Tabelle)
A53: Zurück zu ALU-ECOPAC
A55: Zurück zu ALU-ECOPAC
A57: Profil-Zeichnung H30
A81: Dicke s Boden- / | C81: max.
A82: Deckenplatte | C82: Innenhöhe Hi
A84: Boden- / Deckplatte s = 1,5 mm | C84: 20,40 mm
A85: Boden- / Deckplatte s = 2,0 mm | C85: 19,40 mm
A86: Boden- / Deckplatte s = 2,5 mm | C86: nicht möglich
A87: Boden- / Deckplatte s = 3,0 mm | C87: nicht möglich
A110: Zurück zu ALU-ECOPAC

Sheet H40 ECO
A1: Zurück zu ALU-ECOPAC
A3: Werknorm ALU-ECOPAC H40
A6: EINGABE
B9: Eingabe Leiterplatten-Maße
B11: Länge LLP | C11: 160 | D11: [mm]
B13: Breite BLP | C13: 100 | D13: [mm]
A16: Maße / Teileliste
A18: Kurzbeschreibung | C18: Abmessungen [mm] | F18: Anzahl [Stück]
A19: Alu-Längsprofil Länge L = | C19: =C11+0.2 -> 160.2 | F19: 2
A20: Boden- / Deckplatte s = 1,5 mm [LxB] | C20: =C11 -> 160.0 | D20: X | E20: =C13-4+17.2-0.2 -> 113 | F20: 2
A21: Boden- / Deckplatte s = 2,0 mm [LxB] | C21: =C11 -> 160.0 | D21: X | E21: =C13-4+11.6-0.2 -> 107.4 | F21: 2
A22: Boden- / Deckplatte s = 2,5 mm [LxB] | C22: =C11 -> 160.0 | D22: X | E22: =C13-4+6-0.2 -> 101.8 | F22: 2
A23: Boden- / Deckplatte s = 3,0 mm [LxB] | C23: nicht möglich | F23: ---
A24: Stirnplatte mit Maß B4 | C24: =C13+10.2 -> 110.2 | F24: 2
A26: Bitte beachten:
A27: 1. Die Breite der Boden- / Deckplatte ändert sich mit Ihrer Dicke s (siehe Tabelle)
A54: Zurück zu ALU-ECOPAC
A55: Zurück zu ALU-ECOPAC
A57: Profil-Zeichnung H40
A82: Dicke s Boden- / | C82: max.
A83: Deckenplatte | C83: Innenhöhe Hi
A85: Boden- / Deckplatte s = 1,5 mm | C85: 30,40 mm
A86: Boden- / Deckplatte s = 2,0 mm | C86: 29,40 mm
A87: Boden- / Deckplatte s = 2,5 mm | C87: 28,40 mm
A88: Boden- / Deckplatte s = 3,0 mm | C88: nicht möglich
A109: Zurück zu ALU-ECOPAC

Sheet H50 ECO
A1: Zurück zu ALU-ECOPAC
A3: Werknorm ALU-ECOPAC H50
A6: EINGABE
B9: Eingabe Leiterplatten-Maße
B11: Länge LLP | C11: 160 | D11: [mm]
B13: Breite BLP | C13: 100 | D13: [mm]
A16: Maße / Teileliste
A18: Kurzbeschreibung | C18: Abmessungen [mm] | F18: Anzahl [Stück]
A19: Alu-Längsprofil Länge L = | C19: =C11+0.2 -> 160.2 | F19: 2
A20: Boden- / Deckplatte s = 1,5 mm [LxB] | C20: =C11 -> 160.0 | D20: X | E20: =C13-4+17.2-0.2 -> 113 | F20: 2
A21: Boden- / Deckplatte s = 2,0 mm [LxB] | C21: =C11 -> 160.0 | D21: X | E21: =C13-4+13-0.2 -> 108.8 | F21: 2
A22: Boden- / Deckplatte s = 2,5 mm [LxB] | C22: =C11 -> 160.0 | D22: X | E22: =C13-4+9-0.2 -> 104.8 | F22: 2
A23: Boden- / Deckplatte s = 3,0 mm [LxB] | C23: =C11 -> 160.0 | D23: X | E23: =C13-4+5-0.2 -> 100.8 | F23: 2
A24: Stirnplatte mit Maß B4 | C24: =C13+10.2 -> 110.2 | F24: 2
A26: Bitte beachten:
A27: 1. Die Breite der Boden- / Deckplatte ändert sich mit Ihrer Dicke s (siehe Tabelle)
A54: Zurück zu ALU-ECOPAC
A55: Zurück zu ALU-ECOPAC
A57: Profil-Zeichnung H50
A94: Dicke s Boden- / | C94: max.
A95: Deckenplatte | C95: Innenhöhe Hi
A97: Boden- / Deckplatte s = 1,5 mm | C97: 40,20 mm
A98: Boden- / Deckplatte s = 2,0 mm | C98: 39,20 mm
A99: Boden- / Deckplatte s = 2,5 mm | C99: 38,20 mm
A100: Boden- / Deckplatte s = 3,0 mm | C100: 37,20 mm
A109: Zurück zu ALU-ECOPAC

Sheet H60 ECO
A1: Zurück zu ALU-ECOPAC
A3: Werknorm ALU-ECOPAC H60
A6: EINGABE
B9: Eingabe Leiterplatten-Maße
B11: Länge LLP | C11: 160 | D11: [mm]
B13: Breite BLP | C13: 100 | D13: [mm]
A16: Maße / Teileliste
A18: Kurzbeschreibung | C18: Abmessungen [mm] | F18: Anzahl [Stück]
A19: Alu-Längsprofil Länge L = | C19: =C11+0.2 -> 160.2 | F19: 2
A20: Boden- / Deckplatte s = 1,5 mm [LxB] | C20: =C11 -> 160.0 | D20: X | E20: =C13-4+17.2-0.2 -> 113 | F20: 2
A21: Boden- / Deckplatte s = 2,0 mm [LxB] | C21: =C11 -> 160.0 | D21: X | E21: =C13-4+13-0.2 -> 108.8 | F21: 2
A22: Boden- / Deckplatte s = 2,5 mm [LxB] | C22: =C11 -> 160.0 | D22: X | E22: =C13-4+9-0.2 -> 104.8 | F22: 2
A23: Boden- / Deckplatte s = 3,0 mm [LxB] | C23: =C11 -> 160.0 | D23: X | E23: =C13-4+5-0.2 -> 100.8 | F23: 2
A24: Stirnplatte mit Maß B4 | C24: =C13+10.2 -> 110.2 | F24: 2
A26: Bitte beachten:
A27: 1. Die Breite der Boden- / Deckplatte ändert sich mit Ihrer Dicke s (siehe Tabelle)
A54: Zurück zu ALU-ECOPAC
A55: Zurück zu ALU-ECOPAC
A57: Profil-Zeichnung H60
A92: Dicke s Boden- / | C92: max.
A93: Deckenplatte | C93: Innenhöhe Hi
A95: Boden- / Deckplatte s = 1,5 mm | C95: 50,20 mm
A96: Boden- / Deckplatte s = 2,0 mm | C96: 49,20 mm
A97: Boden- / Deckplatte s = 2,5 mm | C97: 48,20 mm
A98: Boden- / Deckplatte s = 3,0 mm | C98: 47,20 mm
A109: Zurück zu ALU-ECOPAC

Sheet H70 ECO
A1: Zurück zu ALU-ECOPAC
A3: Werknorm ALU-ECOPAC H70
A6: EINGABE
B9: Eingabe Leiterplatten-Maße
B11: Länge LLP | C11: 160 | D11: [mm]
B13: Breite BLP | C13: 100 | D13: [mm]
A16: Maße / Teileliste
A18: Kurzbeschreibung | C18: Abmessungen [mm] | F18: Anzahl [Stück]
A19: Alu-Längsprofil Länge L = | C19: =C11+0.2 -> 160.2 | F19: 2
A20: Boden- / Deckplatte s = 1,5 mm [LxB] | C20: =C11 -> 160.0 | D20: X | E20: =C13-4+17.2-0.2 -> 113 | F20: 2
A21: Boden- / Deckplatte s = 2,0 mm [LxB] | C21: =C11 -> 160.0 | D21: X | E21: =C13-4+13-0.2 -> 108.8 | F21: 2
A22: Boden- / Deckplatte s = 2,5 mm [LxB] | C22: =C11 -> 160.0 | D22: X | E22: =C13-4+9-0.2 -> 104.8 | F22: 2
A23: Boden- / Deckplatte s = 3,0 mm [LxB] | C23: =C11 -> 160.0 | D23: X | E23: =C13-4+5-0.2 -> 100.8 | F23: 2
A24: Stirnplatte mit Maß B4 | C24: =C13+10.2 -> 110.2 | F24: 2
A26: Bitte beachten:
A27: 1. Die Breite der Boden- / Deckplatte ändert sich mit Ihrer Dicke s (siehe Tabelle)
A54: Zurück zu ALU-ECOPAC
A55: Zurück zu ALU-ECOPAC
A57: Profil-Zeichnung H70
A93: Dicke s Boden- / | C93: max.
A94: Deckenplatte | C94: Innenhöhe Hi
A96: Boden- / Deckplatte s = 1,5 mm | C96: 60,20 mm
A97: Boden- / Deckplatte s = 2,0 mm | C97: 59,20 mm
A98: Boden- / Deckplatte s = 2,5 mm | C98: 58,20 mm
A99: Boden- / Deckplatte s = 3,0 mm | C99: 57,20 mm
A109: Zurück zu ALU-ECOPAC

Sheet H80 ECO
A1: Zurück zu ALU-ECOPAC
A3: Werknorm ALU-ECOPAC H80
A6: EINGABE
B9: Eingabe Leiterplatten-Maße
B11: Länge LLP | C11: 160 | D11: [mm]
B13: Breite BLP | C13: 100 | D13: [mm]
A16: Maße / Teileliste
A18: Kurzbeschreibung | C18: Abmessungen [mm] | F18: Anzahl [Stück]
A19: Alu-Längsprofil Länge L = | C19: =C11+0.2 -> 160.2 | F19: 2
A20: Boden- / Deckplatte s = 1,5 mm [LxB] | C20: =C11 -> 160.0 | D20: X | E20: =C13-4+17.2-0.2 -> 113 | F20: 2
A21: Boden- / Deckplatte s = 2,0 mm [LxB] | C21: =C11 -> 160.0 | D21: X | E21: =C13-4+13-0.2 -> 108.8 | F21: 2
A22: Boden- / Deckplatte s = 2,5 mm [LxB] | C22: =C11 -> 160.0 | D22: X | E22: =C13-4+9-0.2 -> 104.8 | F22: 2
A23: Boden- / Deckplatte s = 3,0 mm [LxB] | C23: =C11 -> 160.0 | D23: X | E23: =C13-4+5-0.2 -> 100.8 | F23: 2
A24: Stirnplatte mit Maß B4 | C24: =C13+10.2 -> 110.2 | F24: 2
A26: Bitte beachten:
A27: 1. Die Breite der Boden- / Deckplatte ändert sich mit Ihrer Dicke s (siehe Tabelle)
A54: Zurück zu ALU-ECOPAC
A55: Zurück zu ALU-ECOPAC
A57: Profil-Zeichnung H80
A95: Dicke s Boden- / | C95: max.
A96: Deckenplatte | C96: Innenhöhe Hi
A98: Boden- / Deckplatte s = 1,5 mm | C98: 70,20 mm
A99: Boden- / Deckplatte s = 2,0 mm | C99: 69,20 mm
A100: Boden- / Deckplatte s = 2,5 mm | C100: 68,20 mm
A101: Boden- / Deckplatte s = 3,0 mm | C101: 67,20 mm
A109: Zurück zu ALU-ECOPAC

Sheet H100 ECO
A1: Zurück zu ALU-ECOPAC
A3: Werknorm ALU-ECOPAC H100
A6: EINGABE
B9: Eingabe Leiterplatten-Maße
B11: Länge LLP | C11: 160 | D11: [mm]
B13: Breite BLP | C13: 100 | D13: [mm]
A16: Maße / Teileliste
A18: Kurzbeschreibung | C18: Abmessungen [mm] | F18: Anzahl [Stück]
A19: Alu-Längsprofil Länge L = | C19: =C11+0.2 -> 160.2 | F19: 2
A20: Boden- / Deckplatte s = 1,5 mm [LxB] | C20: =C11 -> 160.0 | D20: X | E20: =C13-4+17.2-0.2 -> 113 | F20: 2
A21: Boden- / Deckplatte s = 2,0 mm [LxB] | C21: =C11 -> 160.0 | D21: X | E21: =C13-4+13-0.2 -> 108.8 | F21: 2
A22: Boden- / Deckplatte s = 2,5 mm [LxB] | C22: =C11 -> 160.0 | D22: X | E22: =C13-4+9-0.2 -> 104.8 | F22: 2
A23: Boden- / Deckplatte s = 3,0 mm [LxB] | C23: =C11 -> 160.0 | D23: X | E23: =C13-4+5-0.2 -> 100.8 | F23: 2
A24: Stirnplatte mit Maß B4 | C24: =C13+10.2 -> 110.2 | F24: 2
A26: Bitte beachten:
A27: 1. Die Breite der Boden- / Deckplatte ändert sich mit Ihrer Dicke s (siehe Tabelle)
A54: Zurück zu ALU-ECOPAC
A55: Zurück zu ALU-ECOPAC
A57: Profil-Zeichnung H100
A95: Dicke s Boden- / | C95: max.
A96: Deckenplatte | C96: Innenhöhe Hi
A98: Boden- / Deckplatte s = 1,5 mm | C98: 90,20 mm
A99: Boden- / Deckplatte s = 2,0 mm | C99: 89,20 mm
A100: Boden- / Deckplatte s = 2,5 mm | C100: 88,20 mm
A101: Boden- / Deckplatte s = 3,0 mm | C101: 87,20 mm
A109: Zurück zu ALU-ECOPAC

Sheet H30 COMPACT
A1: Zurück zu ALU-COMPACT
A3: Werknorm ALU-COMPACT H30
A6: EINGABE
B9: Eingabe Leiterplatten-Maße
B11: Länge LLP | D11: 160 | E11: [mm]
B13: Breite BLP | D13: 100 | E13: [mm]
A16: Maße / Teileliste
A18: Kurzbeschreibung | D18: Abmessungen [mm] | G18: Maß A [mm] | H18: Anzahl [Stück]
A19: Alu-Längsprofil Länge L = | D19: =D11+0.2 -> 160.2 | H19: 2
A20: Alu-Stirnseitenprofil L = | D20: =D13-4.3 -> 95.7 | H20: 4
A21: Boden- / Deckplatte s = 1,5 mm [LxB] | D21: =D11 -> 160.0 | E21: X | F21: =D13-4+15.6-0.2 -> 111.4 | G21: 4 | H21: 2
A22: Boden- / Deckplatte s = 2,0 mm [LxB] | D22: =D11 -> 160.0 | E22: X | F22: =D13-4+8.6-0.2 -> 104.4 | G22: 4 | H22: 2
A23: Boden- / Deckplatte s = 2,5 mm [LxB] | D23: nicht möglich | G23: --- | H23: ---
A24: Boden- / Deckplatte s = 3,0 mm [LxB] | D24: nicht möglich | G24: --- | H24: ---
A25: Stirnplatte mit Maß B4 | D25: =D13+10.2 -> 110.2 | H25: 2
A28: Bitte beachten:
A29: 1. Die Breite der Boden- / Deckplatte ändert sich mit Ihrer Dicke (siehe Tabelle)
A30: 2. Die Geometrie (siehe Zeichnung Maß A) der Stirnplatte ist abhängig von der Dicke s
A31: der Boden- / Deckplatte, da unterschiedliche Stirnseiten-Profile verwendet werden.
A52: Zurück zu ALU-COMPACT
A53: Zurück zu ALU-COMPACT
A56: Profil-Zeichnung H30
A80: Dicke s Boden- / | D80: max.
A81: Deckenplatte | D81: Innenhöhe Hi
A83: Boden- / Deckplatte s = 1,5 mm | D83: 20,40 mm
A84: Boden- / Deckplatte s = 2,0 mm | D84: 19,40 mm
A85: Boden- / Deckplatte s = 2,5 mm | D85: nicht möglich
A86: Boden- / Deckplatte s = 3,0 mm | D86: nicht möglich
A106: Zurück zu ALU-COMPACT

Sheet H40 COMPACT
A1: Zurück zu ALU-COMPACT
A3: Werknorm ALU-COMPACT H40
A6: EINGABE
B9: Eingabe Leiterplatten-Maße
B11: Länge LLP | D11: 160 | E11: [mm]
B13: Breite BLP | D13: 100 | E13: [mm]
A16: Maße / Teileliste
A18: Kurzbeschreibung | D18: Abmessungen [mm] | G18: Maß A [mm] | H18: Anzahl [Stück]
A19: Alu-Längsprofil Länge L = | D19: =D11+0.2 -> 160.2 | H19: 2
A20: Alu-Stirnseitenprofil L = | D20: =D13-4.3 -> 95.7 | H20: 4
A21: Boden- / Deckplatte s = 1,5 mm [LxB] | D21: =D11 -> 160.0 | E21: X | F21: =D13-4+17.2-0.2 -> 113 | G21: 4 | H21: 2
A22: Boden- / Deckplatte s = 2,0 mm [LxB] | D22: =D11 -> 160.0 | E22: X | F22: =D13-4+11.6-0.2 -> 107.4 | G22: 4 | H22: 2
A23: Boden- / Deckplatte s = 2,5 mm [LxB] | D23: =D11 -> 160.0 | E23: X | F23: =D13-4+6-0.2 -> 101.8 | G23: 4.5 | H23: 2
A24: Boden- / Deckplatte s = 3,0 mm [LxB] | D24: nicht möglich | G24: --- | H24: ---
A25: Stirnplatte mit Maß B4 | D25: =D13+10.2 -> 110.2 | H25: 2
A28: Bitte beachten:
A29: 1. Die Breite der Boden- / Deckplatte ändert sich mit Ihrer Dicke (siehe Tabelle)
A30: 2. Die Geometrie (siehe Zeichnung Maß A) der Stirnplatte ist abhängig von der Dicke s
A31: der Boden- / Deckplatte, da unterschiedliche Stirnseiten-Profile verwendet werden.
A52: Zurück zu ALU-COMPACT
A53: Zurück zu ALU-COMPACT
A56: Profil-Zeichnung H40
A81: Dicke s Boden- / | D81: max.
A82: Deckenplatte | D82: Innenhöhe Hi
A84: Boden- / Deckplatte s = 1,5 mm | D84: 30,40 mm
A85: Boden- / Deckplatte s = 2,0 mm | D85: 29,40 mm
A86: Boden- / Deckplatte s = 2,5 mm | D86: 28,40 mm
A87: Boden- / Deckplatte s = 3,0 mm | D87: nicht möglich
A106: Zurück zu ALU-COMPACT

Sheet H50 COMPACT
A1: Zurück zu ALU-COMPACT
A3: Werknorm ALU-COMPACT H50
A6: EINGABE
B9: Eingabe Leiterplatten-Maße
B11: Länge LLP | D11: 160 | E11: [mm]
B13: Breite BLP | D13: 100 | E13: [mm]
A16: Maße / Teileliste
A18: Kurzbeschreibung | D18: Abmessungen [mm] | G18: Maß A [mm] | H18: Anzahl [Stück]
A19: Alu-Längsprofil Länge L = | D19: =D11+0.2 -> 160.2 | H19: 2
A20: Alu-Stirnseitenprofil L = | D20: =D13-4.3 -> 95.7 | H20: 4
A21: Boden- / Deckplatte s = 1,5 mm [LxB] | D21: =D11 -> 160.0 | E21: X | F21: =D13-4+17.2-0.2 -> 113 | G21: 4 | H21: 2
A22: Boden- / Deckplatte s = 2,0 mm [LxB] | D22: =D11 -> 160.0 | E22: X | F22: =D13-4+13-0.2 -> 108.8 | G22: 4 | H22: 2
A23: Boden- / Deckplatte s = 2,5 mm [LxB] | D23: =D11 -> 160.0 | E23: X | F23: =D13-4+9-0.2 -> 104.8 | G23: 4.5 | H23: 2
A24: Boden- / Deckplatte s = 3,0 mm [LxB] | D24: =D11 -> 160.0 | E24: X | F24: =D13-4+5-0.2 -> 100.8 | G24: 5 | H24: 2
A25: Stirnplatte mit Maß B4 | D25: =D13+10.2 -> 110.2 | H25: 2
A28: Bitte beachten:
A29: 1. Die Breite der Boden- / Deckplatte ändert sich mit Ihrer Dicke (siehe Tabelle)
A30: 2. Die Geometrie (siehe Zeichnung Maß A) der Stirnplatte ist abhängig von der Dicke s
A31: der Boden- / Deckplatte, da unterschiedliche Stirnseiten-Profile verwendet werden.
A52: Zurück zu ALU-COMPACT
A53: Zurück zu ALU-COMPACT
A56: Profil-Zeichnung H50
A93: Dicke s Boden- / | D93: max.
A94: Deckenplatte | D94: Innenhöhe Hi
A96: Boden- / Deckplatte s = 1,5 mm | D96: 40,20 mm
A97: Boden- / Deckplatte s = 2,0 mm | D97: 39,20 mm
A98: Boden- / Deckplatte s = 2,5 mm | D98: 38,20 mm
A99: Boden- / Deckplatte s = 3,0 mm | D99: 37,20 mm
A106: Zurück zu ALU-COMPACT

Sheet H60 COMPACT
A1: Zurück zu ALU-COMPACT
A3: Werknorm ALU-COMPACT H60
A6: EINGABE
B9: Eingabe Leiterplatten-Maße
B11: Länge LLP | D11: 160 | E11: [mm]
B13: Breite BLP | D13: 200 | E13: [mm]
A16: Maße / Teileliste
A18: Kurzbeschreibung | D18: Abmessungen [mm] | G18: Maß A [mm] | H18: Anzahl [Stück]
A19: Alu-Längsprofil Länge L = | D19: =D11+0.2 -> 160.2 | H19: 2
A20: Alu-Stirnseitenprofil L = | D20: =D13-4.3 -> 195.7 | H20: 4
A21: Boden- / Deckplatte s = 1,5 mm [LxB] | D21: =D11 -> 160.0 | E21: X | F21: =D13-4+17.2-0.2 -> 213 | G21: 4 | H21: 2
A22: Boden- / Deckplatte s = 2,0 mm [LxB] | D22: =D11 -> 160.0 | E22: X | F22: =D13-4+13-0.2 -> 208.8 | G22: 4 | H22: 2
A23: Boden- / Deckplatte s = 2,5 mm [LxB] | D23: =D11 -> 160.0 | E23: X | F23: =D13-4+9-0.2 -> 204.8 | G23: 4.5 | H23: 2
A24: Boden- / Deckplatte s = 3,0 mm [LxB] | D24: =D11 -> 160.0 | E24: X | F24: =D13-4+5-0.2 -> 200.8 | G24: 5 | H24: 2
A25: Stirnplatte mit Maß B4 | D25: =D13+10.2 -> 210.2 | H25: 2
A28: Bitte beachten:
A29: 1. Die Breite der Boden- / Deckplatte ändert sich mit Ihrer Dicke (siehe Tabelle)
A30: 2. Die Geometrie (siehe Zeichnung Maß A) der Stirnplatte ist abhängig von der Dicke s
A31: der Boden- / Deckplatte, da unterschiedliche Stirnseiten-Profile verwendet werden.
A52: Zurück zu ALU-COMPACT
A53: Zurück zu ALU-COMPACT
A56: Profil-Zeichnung H60
A91: Dicke s Boden- / | D91: max.
A92: Deckenplatte | D92: Innenhöhe Hi
A94: Boden- / Deckplatte s = 1,5 mm | D94: 50,20 mm
A95: Boden- / Deckplatte s = 2,0 mm | D95: 49,20 mm
A96: Boden- / Deckplatte s = 2,5 mm | D96: 48,20 mm
A97: Boden- / Deckplatte s = 3,0 mm | D97: 47,20 mm
A106: Zurück zu ALU-COMPACT

Sheet H70 COMPACT
A1: Zurück zu ALU-COMPACT
A3: Werknorm ALU-COMPACT H70
A6: EINGABE
B9: Eingabe Leiterplatten-Maße
B11: Länge LLP | D11: 160 | E11: [mm]
B13: Breite BLP | D13: 100 | E13: [mm]
A16: Maße / Teileliste
A18: Kurzbeschreibung | D18: Abmessungen [mm] | G18: Maß A [mm] | H18: Anzahl [Stück]
A19: Alu-Längsprofil Länge L = | D19: =D11+0.2 -> 160.2 | H19: 2
A20: Alu-Stirnseitenprofil L = | D20: =D13-4.3 -> 95.7 | H20: 4
A21: Boden- / Deckplatte s = 1,5 mm [LxB] | D21: =D11 -> 160.0 | E21: X | F21: =D13-4+17.2-0.2 -> 113 | G21: 4 | H21: 2
A22: Boden- / Deckplatte s = 2,0 mm [LxB] | D22: =D11 -> 160.0 | E22: X | F22: =D13-4+13-0.2 -> 108.8 | G22: 4 | H22: 2
A23: Boden- / Deckplatte s = 2,5 mm [LxB] | D23: =D11 -> 160.0 | E23: X | F23: =D13-4+9-0.2 -> 104.8 | G23: 4.5 | H23: 2
A24: Boden- / Deckplatte s = 3,0 mm [LxB] | D24: =D11 -> 160.0 | E24: X | F24: =D13-4+5-0.2 -> 100.8 | G24: 5 | H24: 2
A25: Stirnplatte mit Maß B4 | D25: =D13+10.2 -> 110.2 | H25: 2
A27: Bitte beachten:
A28: 1. Die Breite der Boden- / Deckplatte ändert sich mit Ihrer Dicke (siehe Tabelle)
A29: 2. Die Geometrie (siehe Zeichnung Maß A) der Stirnplatte ist abhängig von der Dicke s
A30: der Boden- / Deckplatte, da unterschiedliche Stirnseiten-Profile verwendet werden.
A52: Zurück zu ALU-COMPACT
A53: Zurück zu ALU-COMPACT
A56: Profil-Zeichnung H70
A92: Dicke s Boden- / | D92: max.
A93: Deckenplatte | D93: Innenhöhe Hi
A95: Boden- / Deckplatte s = 1,5 mm | D95: 60,20 mm
A96: Boden- / Deckplatte s = 2,0 mm | D96: 59,20 mm
A97: Boden- / Deckplatte s = 2,5 mm | D97: 58,20 mm
A98: Boden- / Deckplatte s = 3,0 mm | D98: 57,20 mm
A106: Zurück zu ALU-COMPACT

Sheet H80 COMPACT
A1: Zurück zu ALU-COMPACT
A3: Werknorm ALU-COMPACT H80
A6: EINGABE
B9: Eingabe Leiterplatten-Maße
B11: Länge LLP | D11: 160 | E11: [mm]
B13: Breite BLP | D13: 100 | E13: [mm]
A16: Maße / Teileliste
A18: Kurzbeschreibung | D18: Abmessungen [mm] | G18: Maß A [mm] | H18: Anzahl [Stück]
A19: Alu-Längsprofil Länge L = | D19: =D11+0.2 -> 160.2 | H19: 2
A20: Alu-Stirnseitenprofil L = | D20: =D13-4.3 -> 95.7 | H20: 4
A21: Boden- / Deckplatte s = 1,5 mm [LxB] | D21: =D11 -> 160.0 | E21: X | F21: =D13-4+17.2-0.2 -> 113 | G21: 4 | H21: 2
A22: Boden- / Deckplatte s = 2,0 mm [LxB] | D22: =D11 -> 160.0 | E22: X | F22: =D13-4+13-0.2 -> 108.8 | G22: 4 | H22: 2
A23: Boden- / Deckplatte s = 2,5 mm [LxB] | D23: =D11 -> 160.0 | E23: X | F23: =D13-4+9-0.2 -> 104.8 | G23: 4.5 | H23: 2
A24: Boden- / Deckplatte s = 3,0 mm [LxB] | D24: =D11 -> 160.0 | E24: X | F24: =D13-4+5-0.2 -> 100.8 | G24: 5 | H24: 2
A25: Stirnplatte mit Maß B4 | D25: =D13+10.2 -> 110.2 | H25: 2
A27: Bitte beachten:
A28: 1. Die Breite der Boden- / Deckplatte ändert sich mit Ihrer Dicke (siehe Tabelle)
A29: 2. Die Geometrie (siehe Zeichnung Maß A) der Stirnplatte ist abhängig von der Dicke s
A30: der Boden- / Deckplatte, da unterschiedliche Stirnseiten-Profile verwendet werden.
A55: Zurück zu ALU-COMPACT
A56: Zurück zu ALU-COMPACT
A58: Profil-Zeichnung H80
A96: Dicke s Boden- / | D96: max.
A97: Deckenplatte | D97: Innenhöhe Hi
A99: Boden- / Deckplatte s = 1,5 mm | D99: 70,20 mm
A100: Boden- / Deckplatte s = 2,0 mm | D100: 69,20 mm
A101: Boden- / Deckplatte s = 2,5 mm | D101: 68,20 mm
A102: Boden- / Deckplatte s = 3,0 mm | D102: 67,20 mm
A111: Zurück zu ALU-COMPACT

Sheet H100 COMPACT
A1: Zurück zu ALU-COMPACT
A3: Werknorm ALU-COMPACT H100
A6: EINGABE
B9: Eingabe Leiterplatten-Maße
B11: Länge LLP | D11: 160 | E11: [mm]
B13: Breite BLP | D13: 100 | E13: [mm]
A16: Maße / Teileliste
A18: Kurzbeschreibung | D18: Abmessungen [mm] | G18: Maß A [mm] | H18: Anzahl [Stück]
A19: Alu-Längsprofil Länge L = | D19: =D11+0.2 -> 160.2 | H19: 2
A20: Alu-Stirnseitenprofil L = | D20: =D13-4.3 -> 95.7 | H20: 4
A21: Boden- / Deckplatte s = 1,5 mm [LxB] | D21: =D11 -> 160.0 | E21: X | F21: =D13-4+17.2-0.2 -> 113 | G21: 4 | H21: 2
A22: Boden- / Deckplatte s = 2,0 mm [LxB] | D22: =D11 -> 160.0 | E22: X | F22: =D13-4+13-0.2 -> 108.8 | G22: 4 | H22: 2
A23: Boden- / Deckplatte s = 2,5 mm [LxB] | D23: =D11 -> 160.0 | E23: X | F23: =D13-4+9-0.2 -> 104.8 | G23: 4.5 | H23: 2
A24: Boden- / Deckplatte s = 3,0 mm [LxB] | D24: =D11 -> 160.0 | E24: X | F24: =D13-4+5-0.2 -> 100.8 | G24: 5 | H24: 2
A25: Stirnplatte mit Maß B4 | D25: =D13+10.2 -> 110.2 | H25: 2
A27: Bitte beachten:
A28: 1. Die Breite der Boden- / Deckplatte ändert sich mit Ihrer Dicke (siehe Tabelle)
A29: 2. Die Geometrie (siehe Zeichnung Maß A) der Stirnplatte ist abhängig von der Dicke s
A30: der Boden- / Deckplatte, da unterschiedliche Stirnseiten-Profile verwendet werden.
A55: Zurück zu ALU-COMPACT
A56: Zurück zu ALU-COMPACT
A58: Profil-Zeichnung H100
A96: Dicke s Boden- / | D96: max.
A97: Deckenplatte | D97: Innenhöhe Hi
A99: Boden- / Deckplatte s = 1,5 mm | D99: 90,20 mm
A100: Boden- / Deckplatte s = 2,0 mm | D100: 89,20 mm
A101: Boden- / Deckplatte s = 2,5 mm | D101: 88,20 mm
A102: Boden- / Deckplatte s = 3,0 mm | D102: 87,20 mm
A111: Zurück zu ALU-COMPACT
